fUSD/lending_fUSD_20250510
["ID","MTS","AMOUNT","RATE_DAILY","PERIOD"]
[360607451,1746900646135,-1191.7,0.00019901,2]
[360607452,1746900646144,-400.0,0.00019901,2]
[360607453,1746900646154,-783.87,0.00019901,2]
[360607454,1746900646163,-605.38,0.00019901,2]
[360607455,1746900646172,-400.0,0.00019901,2]
[360607456,1746900646182,-735.1,0.00019901,2]
[360607457,1746900646192,-1708.9,0.00019901,2]
[360607458,1746900646201,-400.0,0.00019901,2]
[360607459,1746900646212,-1019.74,0.00019901,2]
[360607460,1746900646222,-400.0,0.00019901,2]
[360607461,1746900646231,-405.33,0.00019901,2]
[360607462,1746900646242,-400.0,0.00019901,2]
[360607463,1746900646251,-400.0,0.00019901,2]
[360607464,1746900646261,-1164.13,0.00019901,2]
[360607465,1746900646271,-925.97,0.00019901,2]
[360607466,1746900646281,-151.0,0.00019902,2]
[360607467,1746900646291,-151.0,0.00019902,2]
[360607468,1746900646300,-151.0,0.00019902,2]
[360607469,1746900646309,-151.0,0.00019902,2]
[360607470,1746900646319,-151.0,0.00019902,2]
[360607471,1746900646328,-151.0,0.00019902,2]
[360607472,1746900646342,-151.0,0.00019902,2]
[360607473,1746900646351,-151.0,0.00019902,2]
[360607474,1746900646360,-269.713672,0.00019902,2]
[360607475,1746900646370,-269.713672,0.00019902,2]
[360607476,1746900646380,-150.0,0.00019907,2]
[360607477,1746900646389,-400.0,0.00019907,2]
[360607478,1746900646398,-405.82,0.00019907,2]
[360607479,1746900646408,-400.0,0.00019907,2]
[360607481,1746900646418,-420.41,0.00019907,2]
[360607482,1746900646427,-400.0,0.00019907,2]
[360607483,1746900646437,-576.33,0.00019907,2]
[360607484,1746900646448,-1468.4,0.00019907,2]
[360607486,1746900646458,-88692.1748437,0.00019908,2]
[360607487,1746900646469,-1885.4824919,0.00019908,2]
[360607489,1746900646478,-6339.2221181,0.00019908,2]
[360607490,1746900646488,-70.76219669,0.00019914,2]
[360607491,1746900646498,-192.31448087,0.00019914,23]
[360607492,1746900646507,-630.43806374,0.00019914,2]
[360607493,1746900646517,-178.22103509,0.00019922,2]
[360607494,1746900646526,-163.16,0.00019923,2]
[360607495,1746900646536,-150.0,0.00019933,2]
[360607496,1746900646545,-150.0,0.00019935,2]
[360607497,1746900646554,-150.0,0.00019941,2]
[360607498,1746900646563,-150.0,0.00019951,2]
[360607499,1746900646573,-150.74482153,0.00019954,2]
[360607500,1746900646583,-150.0,0.00019962,2]
[360607501,1746900646593,-150.0,0.00019963,2]
[360607502,1746900646602,-150.0,0.00019965,2]
[360607503,1746900646611,-150.0,0.0001997,2]
[360607504,1746900646621,-150.0,0.00019971,2]
[360607505,1746900646630,-150.0,0.00019971,2]
[360607506,1746900646640,-150.0,0.00019971,2]
[360607507,1746900646649,-1392.0,0.00019972,2]
[360607508,1746900646659,-1225.48,0.00019972,2]
[360607509,1746900646672,-1963.38,0.00019972,2]
[360607510,1746900646682,-400.68,0.00019972,2]
[360607511,1746900646694,-8011.31,0.00019972,2]
[360607512,1746900646703,-400.0,0.00019972,2]
[360607513,1746900646715,-400.0,0.00019972,2]
[360607514,1746900646724,-400.0,0.00019972,2]
[360607515,1746900646733,-400.0,0.00019972,2]
[360607516,1746900646744,-400.0,0.00019972,2]
[360607517,1746900646754,-958.87,0.00019972,2]
[360607518,1746900646763,-1811.79,0.00019972,2]
[360607519,1746900646773,-870.71,0.00019972,2]
[360607520,1746900646782,-3310.87,0.00019972,2]
[360607521,1746900646792,-679.49,0.00019972,2]
[360607522,1746900646801,-433.56,0.00019972,2]
[360607523,1746900646810,-3108.48,0.00019972,2]
[360607524,1746900646819,-8355.37,0.00019972,2]
[360607525,1746900646829,-500.0,0.00019973,2]
[360607526,1746900646839,-500.0,0.00019973,2]
[360607527,1746900646848,-500.0,0.00019973,2]
[360607528,1746900646858,-490.46388571,0.00019973,2]
[360607529,1746900646868,-504.1885243,0.00019973,2]
[360607530,1746900646877,-500.0,0.00019973,2]
[360607531,1746900646887,-500.0,0.00019973,2]
[360607532,1746900646897,-507.04838419,0.00019973,2]
[360607533,1746900646906,-500.0,0.00019973,2]
[360607534,1746900646915,-500.0,0.00019973,2]
[360607535,1746900646925,-500.0,0.00019973,2]
[360607536,1746900646935,-500.0,0.00019973,2]
[360607537,1746900646945,-500.0,0.00019973,2]
[360607538,1746900646954,-500.0,0.00019973,2]
[360607539,1746900646965,-500.0,0.00019973,2]
[360607540,1746900646975,-600.0,0.00019973,2]
[360607541,1746900646985,-174.3308759,0.00019975,2]
[360607542,1746900646994,-150.0,0.00019975,2]
[360607543,1746900647004,-150.0,0.00019981,2]
[360607544,1746900647013,-400.0,0.00019984,2]
[360607545,1746900647023,-442.68,0.00019984,2]
[360607546,1746900647032,-400.0,0.00019984,2]
[360607547,1746900647041,-400.0,0.00019984,2]
[360607548,1746900647051,-400.0,0.00019984,2]
[360607549,1746900647060,-1893.85,0.00019984,2]
[360607550,1746900647069,-693.55,0.00019984,2]
[360607551,1746900647079,-400.0,0.00019984,2]
[360607552,1746900647088,-643.18,0.00019984,2]
[360607553,1746900647097,-560.85,0.00019984,2]
[360607554,1746900647107,-400.0,0.00019984,2]
[360607555,1746900647116,-400.0,0.00019984,2]
[360607556,1746900647126,-764.64,0.00019984,2]
[360607557,1746900647135,-393.03,0.00019984,2]
[360607558,1746900647145,-400.0,0.00019984,2]
[360607559,1746900647154,-648.51,0.00019984,2]
[360607560,1746900647164,-400.0,0.00019984,2]
[360607561,1746900647173,-543.62,0.00019984,2]
[360607562,1746900647182,-400.0,0.00019984,2]
[360607563,1746900647191,-405.82,0.00019984,2]
[360607564,1746900647201,-440.18,0.00019984,2]
[360607565,1746900647212,-997.89,0.00019984,2]
[360607566,1746900647221,-1191.7,0.00019984,2]
[360607567,1746900647231,-400.0,0.00019984,2]
[360607568,1746900647240,-605.38,0.00019984,2]
[360607569,1746900647249,-400.0,0.00019984,2]
[360607570,1746900647258,-400.0,0.00019984,2]
[360607571,1746900647267,-735.1,0.00019984,2]
[360607572,1746900647277,-420.41,0.00019984,2]
[360607573,1746900647286,-384.24650993,0.00019984,2]
[360607574,1746900647295,-400.0,0.00019984,2]
[360607575,1746900647305,-1019.74,0.00019984,2]
[360607576,1746900647314,-576.33,0.00019984,2]
[360607577,1746900647324,-400.0,0.00019984,2]
[360607578,1746900647334,-405.33,0.00019984,2]
[360607579,1746900647343,-400.0,0.00019984,2]
[360607580,1746900647353,-1468.4,0.00019984,2]
[360607581,1746900647362,-400.0,0.00019984,2]
[360607582,1746900647372,-925.97,0.00019984,2]
[360607583,1746900647382,-500.0,0.00019985,2]
[360607584,1746900647391,-333.78,0.00019985,2]
[360607585,1746900647401,-509.94202145,0.00019985,2]
[360607586,1746900647410,-410.33,0.00019985,2]
[360607587,1746900647419,-400.0,0.00019985,2]
[360607588,1746900647429,-400.0,0.00019985,2]
[360607589,1746900647439,-400.0,0.00019985,2]
[360607590,1746900647448,-400.0,0.00019985,2]
[360607591,1746900647458,-319.69,0.00019985,2]
[360607592,1746900647468,-442.68,0.00019985,2]
[360607593,1746900647478,-442.68,0.00019985,2]
[360607594,1746900647488,-442.68,0.00019985,2]
[360607595,1746900647497,-442.68,0.00019985,2]
[360607596,1746900647506,-400.0,0.00019985,2]
[360607597,1746900647516,-400.0,0.00019985,2]
[360607598,1746900647526,-400.0,0.00019985,2]
[360607599,1746900647537,-400.0,0.00019985,2]
[360607600,1746900647547,-1392.0,0.00019985,2]
[360607601,1746900647556,-1392.0,0.00019985,2]
[360607602,1746900647566,-1392.0,0.00019985,2]
[360607603,1746900647576,-1392.0,0.00019985,2]
[360607604,1746900647585,-1225.48,0.00019985,2]
[360607605,1746900647595,-1225.48,0.00019985,2]
[360607606,1746900647605,-1225.48,0.00019985,2]
[360607607,1746900647659,-1225.48,0.00019985,2]
[360607608,1746900647677,-400.0,0.00019985,2]
[360607609,1746900647687,-400.0,0.00019985,2]
[360607610,1746900647697,-400.0,0.00019985,2]
[360607611,1746900647709,-400.0,0.00019985,2]
[360607612,1746900647719,-400.0,0.00019985,2]
[360607613,1746900647728,-400.0,0.00019985,2]
[360607614,1746900647739,-400.0,0.00019985,2]
[360607615,1746900647749,-400.0,0.00019985,2]
[360607616,1746900647759,-1893.85,0.00019985,2]
[360607617,1746900647769,-1893.85,0.00019985,2]
[360607618,1746900647779,-1893.85,0.00019985,2]
[360607619,1746900647788,-1893.85,0.00019985,2]
[360607620,1746900647797,-1963.38,0.00019985,2]
[360607621,1746900647806,-1963.38,0.00019985,2]
[360607622,1746900647815,-693.55,0.00019985,2]
[360607623,1746900647825,-1963.38,0.00019985,2]
[360607624,1746900647834,-693.55,0.00019985,2]
[360607625,1746900647843,-1963.38,0.00019985,2]
[360607626,1746900647852,-693.55,0.00019985,2]
[360607627,1746900647862,-693.55,0.00019985,2]
[360607628,1746900647871,-8011.31,0.00019985,2]
[360607629,1746900647881,-8011.31,0.00019985,2]
[360607630,1746900647890,-8011.31,0.00019985,2]
[360607631,1746900647900,-8011.31,0.00019985,2]
[360607632,1746900647909,-516.96500909,0.00019985,2]
[360607633,1746900647918,-643.18,0.00019985,2]
[360607634,1746900647927,-643.18,0.00019985,2]
[360607635,1746900647937,-643.18,0.00019985,2]
[360607636,1746900647947,-643.18,0.00019985,2]
[360607637,1746900647956,-560.85,0.00019985,2]
[360607638,1746900647966,-560.85,0.00019985,2]
[360607639,1746900647976,-560.85,0.00019985,2]
[360607640,1746900647985,-560.85,0.00019985,2]
[360607641,1746900647995,-400.0,0.00019985,2]
[360607642,1746900648004,-400.0,0.00019985,2]
[360607643,1746900648014,-400.0,0.00019985,2]
[360607644,1746900648024,-400.0,0.00019985,2]
[360607645,1746900648033,-400.0,0.00019985,2]
[360607646,1746900648042,-400.0,0.00019985,2]
[360607647,1746900648052,-400.0,0.00019985,2]
[360607648,1746900648061,-400.0,0.00019985,2]
[360607649,1746900648072,-400.0,0.00019985,2]
[360607650,1746900648082,-400.0,0.00019985,2]
[360607651,1746900648092,-400.0,0.00019985,2]
[360607652,1746900648102,-400.0,0.00019985,2]
[360607653,1746900648112,-400.0,0.00019985,2]
[360607654,1746900648122,-400.0,0.00019985,2]
[360607655,1746900648132,-400.0,0.00019985,2]
[360607656,1746900648142,-400.0,0.00019985,2]
[360607657,1746900648153,-400.0,0.00019985,2]
[360607658,1746900648163,-400.0,0.00019985,2]
[360607659,1746900648173,-400.0,0.00019985,2]
[360607660,1746900648183,-400.0,0.00019985,2]
[360607661,1746900648194,-400.0,0.00019985,2]
[360607662,1746900648204,-286.76901233,0.00019985,2]
[360607663,1746900648220,-400.0,0.00019985,2]
[360607664,1746900648230,-293.61,0.00019985,2]
[360607665,1746900648240,-958.87,0.00019985,2]
[360607666,1746900648249,-958.87,0.00019985,2]
[360607667,1746900648258,-958.87,0.00019985,2]
[360607668,1746900648268,-958.87,0.00019985,2]
[360607669,1746900648277,-764.64,0.00019985,2]
[360607670,1746900648288,-764.64,0.00019985,2]
[360607671,1746900648298,-764.64,0.00019985,2]
[360607672,1746900648308,-764.64,0.00019985,2]
[360607673,1746900648317,-400.0,0.00019985,2]
[360607674,1746900648327,-400.0,0.00019985,2]
[360607675,1746900648336,-400.0,0.00019985,2]
[360607676,1746900648347,-400.0,0.00019985,2]
[360607677,1746900648356,-1811.79,0.00019985,2]
[360607678,1746900648366,-1811.79,0.00019985,2]
[360607679,1746900648376,-1811.79,0.00019985,2]
[360607680,1746900648385,-1811.79,0.00019985,2]
[360607681,1746900648395,-870.71,0.00019985,2]
[360607682,1746900648405,-870.71,0.00019985,2]
[360607683,1746900648415,-870.71,0.00019985,2]
[360607684,1746900648424,-870.71,0.00019985,2]
[360607685,1746900648434,-648.51,0.00019985,2]
[360607686,1746900648443,-648.51,0.00019985,2]
[360607687,1746900648453,-648.51,0.00019985,2]
[360607688,1746900648466,-648.51,0.00019985,2]
[360607689,1746900648475,-3310.87,0.00019985,2]
[360607690,1746900648485,-3310.87,0.00019985,2]
[360607691,1746900648494,-3310.87,0.00019985,2]
[360607692,1746900648504,-3310.87,0.00019985,2]
[360607693,1746900648513,-2488.93,0.00019985,2]
[360607694,1746900648523,-2488.93,0.00019985,2]
[360607695,1746900648533,-2488.93,0.00019985,2]
[360607696,1746900648542,-2488.93,0.00019985,2]
[360607697,1746900648552,-2488.93,0.00019985,2]
[360607698,1746900648562,-679.49,0.00019985,2]
[360607699,1746900648571,-679.49,0.00019985,2]
[360607700,1746900648581,-679.49,0.00019985,2]
[360607701,1746900648590,-679.49,0.00019985,2]
[360607702,1746900648599,-433.56,0.00019985,2]
[360607703,1746900648608,-433.56,0.00019985,2]
[360607704,1746900648618,-433.56,0.00019985,2]
[360607705,1746900648627,-433.56,0.00019985,2]
[360607706,1746900648638,-3108.48,0.00019985,2]
[360607707,1746900648648,-3108.48,0.00019985,2]
[360607708,1746900648657,-3108.48,0.00019985,2]
[360607709,1746900648669,-3108.48,0.00019985,2]
[360607710,1746900648679,-8355.37,0.00019985,2]
[360607711,1746900648689,-8355.37,0.00019985,2]
[360607712,1746900648699,-8355.37,0.00019985,2]
[360607713,1746900648710,-8355.37,0.00019985,2]
[360607714,1746900648720,-400.0,0.00019985,2]
[360607715,1746900648729,-400.0,0.00019985,2]
[360607716,1746900648739,-400.0,0.00019985,2]
[360607717,1746900648749,-400.0,0.00019985,2]
[360607718,1746900648759,-543.62,0.00019985,2]
[360607719,1746900648769,-543.62,0.00019985,2]
[360607720,1746900648779,-543.62,0.00019985,2]
[360607721,1746900648788,-543.62,0.00019985,2]
[360607722,1746900648797,-400.0,0.00019985,2]
[360607723,1746900648807,-400.0,0.00019985,2]
[360607724,1746900648816,-460.128178,0.00019985,2]
[360607725,1746900648825,-511.84,0.00019985,2]
[360607726,1746900648836,-405.82,0.00019985,2]
[360607727,1746900648845,-405.82,0.00019985,2]
[360607728,1746900648855,-405.82,0.00019985,2]
[360607729,1746900648864,-405.82,0.00019985,2]
[360607730,1746900648874,-405.82,0.00019985,2]
[360607731,1746900648884,-1525.55,0.00019985,2]
[360607732,1746900648893,-1525.55,0.00019985,2]
[360607733,1746900648903,-1525.55,0.00019985,2]
[360607734,1746900648912,-1525.55,0.00019985,2]
[360607735,1746900648922,-1525.55,0.00019985,2]
[360607736,1746900648931,-997.89,0.00019985,2]
[360607737,1746900648940,-997.89,0.00019985,2]
[360607738,1746900648950,-997.89,0.00019985,2]
[360607739,1746900648962,-997.89,0.00019985,2]
[360607740,1746900648971,-1191.7,0.00019985,2]
[360607741,1746900648989,-1191.7,0.00019985,2]
[360607742,1746900649001,-1191.7,0.00019985,2]
[360607743,1746900649010,-1191.7,0.00019985,2]
[360607744,1746900649019,-1191.7,0.00019985,2]
[360607745,1746900649029,-400.0,0.00019985,2]
[360607746,1746900649039,-400.0,0.00019985,2]
[360607747,1746900649048,-400.0,0.00019985,2]
[360607748,1746900649058,-400.0,0.00019985,2]
[360607749,1746900649067,-783.87,0.00019985,2]
[360607750,1746900649077,-783.87,0.00019985,2]
[360607751,1746900649087,-783.87,0.00019985,2]
[360607752,1746900649097,-783.87,0.00019985,2]
[360607753,1746900649107,-783.87,0.00019985,2]
[360607754,1746900649116,-605.38,0.00019985,2]
[360607755,1746900649126,-400.0,0.00019985,2]
[360607756,1746900649135,-605.38,0.00019985,2]
[360607757,1746900649146,-400.0,0.00019985,2]
[360607758,1746900649157,-605.38,0.00019985,2]
[360607759,1746900649166,-400.0,0.00019985,2]
[360607760,1746900649176,-605.38,0.00019985,2]
[360607761,1746900649186,-400.0,0.00019985,2]
[360607762,1746900649195,-400.0,0.00019985,2]
[360607763,1746900649205,-400.0,0.00019985,2]
[360607764,1746900649217,-400.0,0.00019985,2]
[360607765,1746900649227,-400.0,0.00019985,2]
[360607766,1746900649237,-400.0,0.00019985,2]
[360607767,1746900649247,-735.1,0.00019985,2]
[360607768,1746900649257,-400.0,0.00019985,2]
[360607769,1746900649267,-735.1,0.00019985,2]
[360607770,1746900649276,-735.1,0.00019985,2]
[360607771,1746900649286,-735.1,0.00019985,2]
[360607772,1746900649296,-1708.9,0.00019985,2]
[360607773,1746900649305,-1708.9,0.00019985,2]
[360607774,1746900649315,-1708.9,0.00019985,2]
[360607775,1746900649325,-1708.9,0.00019985,2]
[360607776,1746900649335,-420.41,0.00019985,2]
[360607777,1746900649344,-1708.9,0.00019985,2]
[360607778,1746900649354,-420.41,0.00019985,2]
[360607779,1746900649364,-420.41,0.00019985,2]
[360607780,1746900649374,-420.41,0.00019985,2]
[360607781,1746900649383,-420.41,0.00019985,2]
[360607782,1746900649393,-400.0,0.00019985,2]
[360607783,1746900649403,-1019.74,0.00019985,2]
[360607784,1746900649413,-315.56222592,0.00019985,2]
[360607785,1746900649423,-1019.74,0.00019985,2]
[360607786,1746900649435,-1019.74,0.00019985,2]
[360607787,1746900649445,-1019.74,0.00019985,2]
[360607788,1746900649455,-576.33,0.00019985,2]
[360607789,1746900649466,-576.33,0.00019985,2]
[360607790,1746900649476,-400.0,0.00019985,2]
[360607791,1746900649486,-576.33,0.00019985,2]
[360607792,1746900649495,-400.0,0.00019985,2]
[360607793,1746900649505,-576.33,0.00019985,2]
[360607794,1746900649515,-400.0,0.00019985,2]
[360607795,1746900649524,-576.33,0.00019985,2]
[360607796,1746900649534,-400.0,0.00019985,2]
[360607797,1746900649544,-400.0,0.00019985,2]
[360607798,1746900649554,-405.33,0.00019985,2]
[360607799,1746900649563,-405.33,0.00019985,2]
[360607800,1746900649573,-405.33,0.00019985,2]
[360607801,1746900649583,-405.33,0.00019985,2]
[360607802,1746900649592,-400.0,0.00019985,2]
[360607803,1746900649602,-400.0,0.00019985,2]
[360607804,1746900649612,-400.0,0.00019985,2]
[360607805,1746900649622,-400.0,0.00019985,2]
[360607806,1746900649633,-1468.4,0.00019985,2]
[360607807,1746900649643,-1468.4,0.00019985,2]
[360607808,1746900649654,-1468.4,0.00019985,2]
[360607809,1746900649665,-1468.4,0.00019985,2]
[360607810,1746900649680,-1468.4,0.00019985,2]
[360607811,1746900649690,-400.0,0.00019985,2]
[360607812,1746900649700,-400.0,0.00019985,2]
[360607813,1746900649710,-400.0,0.00019985,2]
[360607814,1746900649720,-400.0,0.00019985,2]
[360607815,1746900649730,-1164.13,0.00019985,2]
[360607816,1746900649739,-1164.13,0.00019985,2]
[360607817,1746900649750,-1164.13,0.00019985,2]
[360607818,1746900649760,-1164.13,0.00019985,2]
[360607819,1746900649769,-1164.13,0.00019985,2]
[360607820,1746900649778,-925.97,0.00019985,2]
[360607821,1746900649789,-925.97,0.00019985,2]
[360607822,1746900649799,-925.97,0.00019985,2]
[360607823,1746900649808,-925.97,0.00019985,2]
[360607824,1746900649818,-500.0,0.00019985,2]
[360607825,1746900649827,-500.0,0.00019985,2]
[360607826,1746900649838,-500.0,0.00019985,2]
[360607827,1746900649849,-500.0,0.00019985,2]
[360607828,1746900649858,-151.0,0.00019986,2]
[360607829,1746900649867,-151.0,0.00019986,2]
[360607830,1746900649876,-151.0,0.00019986,2]
[360607831,1746900649887,-151.0,0.00019986,2]
[360607832,1746900649896,-151.0,0.00019986,2]
[360607833,1746900649906,-151.0,0.00019986,2]
[360607834,1746900649915,-151.0,0.00019986,2]
[360607835,1746900649925,-151.0,0.00019986,2]
[360607836,1746900649934,-237.11462,0.00019986,2]
[360607837,1746900649944,-151.0,0.00019986,2]
[360607838,1746900649953,-151.0,0.00019986,2]
[360607839,1746900649965,-151.0,0.00019986,2]
[360607840,1746900649974,-190.178257,0.00019986,2]
[360607841,1746900649984,-151.0,0.00019986,2]
[360607842,1746900649993,-151.0,0.00019986,2]
[360607843,1746900650003,-151.0,0.00019986,2]
[360607844,1746900650012,-151.0,0.00019986,2]
[360607845,1746900650023,-151.0,0.00019986,2]
[360607846,1746900650032,-151.0,0.00019986,2]
[360607847,1746900650042,-151.0,0.00019986,2]
[360607848,1746900650051,-151.0,0.00019986,2]
[360607849,1746900650060,-151.0,0.00019986,2]
[360607850,1746900650070,-151.0,0.00019986,2]
[360607851,1746900650079,-151.0,0.00019986,2]
[360607852,1746900650089,-151.0,0.00019986,2]
[360607853,1746900650098,-151.0,0.00019986,2]
[360607854,1746900650108,-151.0,0.00019986,2]
[360607855,1746900650118,-151.0,0.00019986,2]
[360607856,1746900650127,-269.713672,0.00019986,2]
[360607857,1746900650137,-161.463285,0.00019986,2]
[360607858,1746900650146,-269.713672,0.00019986,2]
[360607859,1746900650155,-269.713672,0.00019986,2]
[360607860,1746900650164,-269.713672,0.00019986,2]
[360607861,1746900650174,-269.713672,0.00019986,2]
[360607862,1746900650183,-269.713672,0.00019986,2]
[360607863,1746900650193,-122832.3966203,0.00019986,2]
[360607864,1746900650202,-156972.6183968,0.00019986,2]
[360607865,1746900650214,-191112.8401734,0.00019986,2]
[360607866,1746900650223,-225253.06195,0.00019986,2]
[360607867,1746900650233,-2611.2600539,0.00019986,2]
[360607868,1746900650242,-3337.037616,0.00019986,2]
[360607869,1746900650252,-4062.815178,0.00019986,2]
[360607870,1746900650262,-4788.5927401,0.00019986,2]
[360607871,1746900650271,-10000.0,0.00019986,2]
[360607872,1746900650280,-10000.0,0.00019986,2]
[360607873,1746900650290,-10000.0,0.00019986,2]
[360607874,1746900650299,-10000.0,0.00019986,2]
[360607875,1746900650309,-10000.0,0.00019986,2]
[360607876,1746900650318,-10000.0,0.00019986,2]
[360607877,1746900650328,-151.0,0.00019986,2]
[360607878,1746900650338,-151.0,0.00019986,2]
[360607879,1746900650347,-8779.3748079,0.00019986,2]
[360607880,1746900650356,-11219.5274977,0.00019986,2]
[360607881,1746900650366,-13659.6801874,0.00019986,2]
[360607882,1746900650375,-16099.8328772,0.00019986,2]
[360607883,1746900650385,-952.661613,0.00019986,2]
[360607884,1746900650395,-952.661613,0.00019986,2]
[360607885,1746900650405,-952.661613,0.00019986,2]
[360607886,1746900650415,-151.0,0.00019986,2]
[360607887,1746900650424,-151.0,0.00019986,2]
[360607888,1746900650434,-952.661613,0.00019986,2]
[360607889,1746900650443,-952.661613,0.00019986,2]
[360607890,1746900650453,-952.661613,0.00019986,2]
[360607891,1746900650464,-151.0,0.00019986,2]
[360607892,1746900650475,-156.08734,0.00019986,2]
[360607893,1746900650484,-156.463033,0.00019986,2]
[360607894,1746900650494,-151.0,0.00019986,2]
[360607895,1746900650504,-151.0,0.00019986,2]
[360607896,1746900650513,-151.0,0.00019986,2]
[360607897,1746900650523,-151.0,0.00019986,2]
[360607898,1746900650532,-324659.66032804,0.00019986,2]
[360607899,1746900650542,-150.0,0.00019987,2]
[360607900,1746900650551,-174.3308759,0.0001999,2]
[360607901,1746900650560,-174.3308759,0.0001999,2]
[360607902,1746900650570,-706.82499899,0.00019994,2]
[360607903,1746900650580,-9688.37411029,0.00019996,2]
[360607904,1746900650589,-442.68,0.00019998,2]
[360607905,1746900650599,-400.0,0.00019998,2]
[360607906,1746900650610,-400.0,0.00019998,2]
[360607907,1746900650619,-1893.85,0.00019998,2]
[360607908,1746900650629,-693.55,0.00019998,2]
[360607909,1746900650640,-643.18,0.00019998,2]
[360607910,1746900650649,-560.85,0.00019998,2]
[360607911,1746900650660,-400.0,0.00019998,2]
[360607912,1746900650671,-764.64,0.00019998,2]
[360607913,1746900650681,-400.0,0.00019998,2]
[360607914,1746900650691,-648.51,0.00019998,2]
[360607915,1746900650701,-2488.93,0.00019998,2]
[360607916,1746900650716,-300.0,0.00019998,2]
[360607917,1746900650726,-400.0,0.00019998,2]
[360607918,1746900650737,-543.62,0.00019998,2]
[360607919,1746900650748,-405.82,0.00019998,2]
[360607920,1746900650758,-405.82,0.00019998,2]
[360607921,1746900650768,-405.82,0.00019998,2]
[360607922,1746900650779,-1525.55,0.00019998,2]
[360607923,1746900650789,-997.89,0.00019998,2]
[360607924,1746900650798,-1191.7,0.00019998,2]
[360607925,1746900650808,-1191.7,0.00019998,2]
[360607926,1746900650818,-1191.7,0.00019998,2]
[360607927,1746900650828,-400.0,0.00019998,2]
[360607928,1746900650839,-783.87,0.00019998,2]
[360607929,1746900650850,-605.38,0.00019998,2]
[360607930,1746900650860,-400.0,0.00019998,2]
[360607931,1746900650869,-400.0,0.00019998,2]
[360607932,1746900650880,-400.0,0.00019998,2]
[360607933,1746900650890,-400.0,0.00019998,2]
[360607934,1746900650900,-400.0,0.00019998,2]
[360607935,1746900650910,-400.0,0.00019998,2]
[360607936,1746900650919,-735.1,0.00019998,2]
[360607937,1746900650929,-1708.9,0.00019998,2]
[360607938,1746900650939,-420.41,0.00019998,2]
[360607939,1746900650948,-420.41,0.00019998,2]
[360607940,1746900650957,-420.41,0.00019998,2]
[360607941,1746900650969,-1019.74,0.00019998,2]
[360607942,1746900650979,-576.33,0.00019998,2]
[360607943,1746900650988,-576.33,0.00019998,2]
[360607944,1746900650998,-576.33,0.00019998,2]
[360607945,1746900651009,-413.09,0.00019998,2]
[360607946,1746900651019,-405.33,0.00019998,2]
[360607947,1746900651029,-400.0,0.00019998,2]
[360607948,1746900651039,-1468.4,0.00019998,2]
[360607949,1746900651049,-1468.4,0.00019998,2]
[360607950,1746900651059,-1468.4,0.00019998,2]
[360607951,1746900651068,-400.0,0.00019998,2]
[360607952,1746900651078,-1164.13,0.00019998,2]
[360607953,1746900651087,-925.97,0.00019998,2]